bitfinex/quotes_ETHUSD_20250329
["timestamp","ask_amount","ask_price","bid_price","bid_amount"]
[1743273176454,14.35502131,1827.3,1827.2,10.18]
[1743273176856,10.18643731,1827.3,1827.2,10.18]
[1743273177489,5.4738,1826.9,1826.7,0.8074]
[1743273177687,5.4738,1826.9,1826.7,10.9874]
[1743273178383,3.0,1826.9,1826.7,10.9874]
[1743273179386,8.47378,1826.9,1826.7,10.9874]
[1743273179685,3.0,1826.7,1826.2,10.18]
[1743273179885,0.55,1826.8,1826.2,10.18]
[1743273179886,4.16388731,1826.3,1826.2,10.18]
[1743273180053,3.0,1826.8,1826.5,5.47477]
[1743273180381,8.47406,1826.8,1826.4,15.70992428]
[1743273180587,5.47449,1826.7,1826.4,12.29852643]
[1743273181087,8.47406,1826.8,1826.4,12.29852643]
[1743273181283,13.94823,1826.8,1826.4,17.77372643]
[1743273181459,13.94822,1826.8,1826.4,17.77372643]
[1743273181787,8.47406,1826.8,1826.4,12.29852643]
[1743273182088,5.47495,1826.5,1826.4,10.18]
[1743273182273,6.02495,1826.5,1826.4,10.18]
[1743273182479,9.63859731,1826.6,1826.4,10.18]
[1743273182654,5.47495,1826.5,1826.4,10.18]
[1743273182856,9.63859731,1826.6,1826.4,10.18]
[1743273183057,0.55,1826.7,1826.4,10.18]
[1743273183356,7.16388731,1826.8,1826.4,16.67302]
[1743273183556,5.47435,1826.7,1826.4,11.198]
[1743273184285,7.16388731,1826.8,1826.5,0.8074]
[1743273184460,12.63807731,1826.8,1826.5,10.9874]
[1743273184657,12.63807731,1826.8,1826.5,16.46233]
[1743273185028,7.16388731,1826.8,1826.5,16.46233]
[1743273185180,12.63794731,1826.8,1826.5,10.9874]
[1743273185582,7.16388731,1826.8,1826.5,16.46221]
[1743273185783,12.63813731,1826.8,1826.5,10.9874]
[1743273186093,5.47438,1826.7,1826.5,10.18]
[1743273186271,9.63853731,1826.6,1826.5,10.18]
[1743273187707,10.18853731,1826.6,1826.5,10.18]
[1743273187871,14.75482904,1826.6,1826.5,10.18]
[1743273188061,15.15791317,1826.6,1826.5,10.18]
[1743273188261,17.68318831,1826.6,1826.5,10.18]
[1743273188462,3.0,1826.7,1826.5,10.18]
[1743273188903,8.47435,1826.7,1826.5,10.18]
[1743273189997,3.0,1826.7,1826.5,10.18]
[1743273190199,3.0,1826.7,1826.5,15.65482]
[1743273190499,3.0,1826.7,1826.5,17.767826]
[1743273191207,3.0,1826.7,1826.6,0.791]
[1743273191627,5.47465,1826.6,1826.5,10.18]
[1743273191914,17.29043031,1826.6,1826.5,10.18]
[1743273192079,3.0,1826.7,1826.5,15.65495]
[1743273192421,3.0,1826.7,1826.6,0.791]
[1743273193524,16.572984,1826.7,1826.5,10.18]
[1743273193677,4.16388731,1826.6,1826.5,10.18]
[1743273193882,3.0,1826.7,1826.5,10.18]
[1743273194524,8.47439,1826.7,1826.5,10.18]
[1743273195063,4.16388731,1826.8,1826.5,17.220234]
[1743273195325,3.0,1826.9,1826.6,10.971]
[1743273195526,3.0,1826.9,1826.7,5.4741]
[1743273195683,3.0,1826.9,1826.8,5.47405]
[1743273196319,9.63692731,1827.2,1826.8,10.94792]
[1743273196530,15.10997731,1827.2,1826.9,10.18]
[1743273196676,8.47315,1827.1,1826.9,10.18]
[1743273197732,3.0,1827.1,1826.9,10.18]
[1743273198301,8.47319,1827.1,1826.9,10.18]
[1743273198728,13.94656,1827.1,1826.9,10.18]
[1743273198934,9.63733731,1827.0,1826.9,10.18]
[1743273199434,4.16388731,1827.0,1826.9,10.18]
[1743273199636,8.47332,1827.1,1826.9,10.18]
[1743273200152,13.18733731,1827.0,1826.9,10.18]
[1743273200740,2.76252036,1827.5,1827.3,5.47238]
[1743273200926,2.76252036,1827.5,1827.4,15.65225]
[1743273201134,2.76252036,1827.5,1827.4,16.40475]
[1743273201331,1.22785161,1827.5,1827.4,16.40475]
[1743273201549,0.05,1827.9,1827.5,5.4719]
[1743273201852,5.52096,1827.9,1827.5,10.23471262]
[1743273202050,10.99199,1827.9,1827.5,15.70654262]
[1743273202213,10.99199,1827.9,1827.5,15.65183]
[1743273202623,5.93224035,1827.9,1827.5,15.65183]
[1743273202828,5.93224035,1827.9,1827.5,18.0582403]
[1743273203438,5.93224035,1827.9,1827.5,23.5300703]
[1743273203652,5.93224035,1827.9,1827.6,5.52634154]
[1743273203865,3.0,1827.8,1827.6,5.52634154]
[1743273204012,5.52096,1827.9,1827.6,5.52634154]
[1743273204222,3.05,1827.9,1827.6,13.35631972]
[1743273204417,0.05,1827.9,1827.8,5.47105]
[1743273204619,0.05,1827.9,1827.7,0.7525]
[1743273205560,0.05,1827.9,1827.7,6.22373]
[1743273205864,0.05,1827.9,1827.7,0.7525]
[1743273206160,0.05,1827.9,1827.7,2.62873782]
[1743273206570,0.10609695,1827.8,1827.7,2.62873782]
[1743273206722,0.05,1827.9,1827.7,18.33479468]
[1743273206929,0.05,1827.9,1827.8,5.47105]
[1743273207676,0.05,1827.9,1827.8,5.52575265]
[1743273207831,0.05,1827.9,1827.8,7.9063367]
[1743273210855,0.05,1827.9,1827.8,18.03163405]
[1743273212679,0.05,1827.9,1827.8,18.86063405]
[1743273216058,0.05,1827.9,1827.8,24.65763405]
[1743273217093,0.05,1827.9,1827.8,18.86063405]
[1743273217297,0.05,1827.9,1827.8,13.38958405]
[1743273217801,0.05,1827.9,1826.9,5.47351]
[1743273217802,0.05,1827.9,1827.5,10.9878]
[1743273217967,12.63535731,1827.7,1827.5,10.18]
[1743273218357,12.63535731,1827.7,1827.2,10.18]
[1743273218358,5.47165,1827.6,1827.2,10.18]
[1743273218561,4.16388731,1827.4,1827.2,10.18]
[1743273218764,3.0,1827.4,1827.3,6.49055]
[1743273219002,3.0,1827.4,1827.3,1.018]
[1743273219709,0.05,1827.9,1827.8,5.47105]
[1743273220002,0.05,1827.9,1827.8,22.801955]
[1743273220374,0.05,1827.9,1827.8,17.005955]
[1743273220573,0.05,1827.9,1827.8,22.801955]
[1743273221418,9.68464731,1827.9,1827.5,10.9878]
[1743273221586,3.0,1827.7,1827.5,10.9878]
[1743273222295,0.10430491,1827.6,1827.5,16.45964]
[1743273224431,0.05,1827.9,1827.8,5.47105]
[1743273224592,0.05,1827.9,1827.8,7.42777919]
[1743273225238,0.05,1827.9,1827.8,17.553079]
[1743273229548,0.0473467,1828.6,1828.5,5.46896]
[1743273229746,0.0473467,1828.6,1828.5,15.64896]
[1743273230047,0.0473467,1828.6,1828.5,18.340171]
[1743273230459,0.0473467,1828.6,1828.5,24.134171]
[1743273236479,0.0473467,1828.6,1828.5,12.871211]
[1743273236671,0.0473467,1828.6,1828.5,10.18]
[1743273237171,0.0473467,1828.6,1828.5,15.64896]
[1743273237672,5.46913,1828.5,1828.0,10.18]
[1743273237968,5.5160467,1828.6,1828.2,5.46983]
[1743273238270,5.5160467,1828.6,1828.3,0.0546903]
[1743273238571,0.0473467,1828.6,1828.3,5.5240603]
[1743273238758,3.0473467,1828.6,1828.3,6.64753803]
[1743273239337,3.0473467,1828.6,1828.3,6.70222421]
[1743273239338,0.0473467,1828.6,1828.3,6.70222421]
[1743273239669,0.0473467,1828.6,1828.3,12.49322421]
[1743273239866,0.0473467,1828.6,1828.3,6.96916803]
[1743273240032,5.5161767,1828.6,1828.3,6.96916803]
[1743273240481,5.5161767,1828.6,1828.3,12.43868803]
[1743273241552,5.5161767,1828.6,1828.1,5.46998]
[1743273241553,0.0473467,1828.6,1828.1,5.46998]
[1743273241864,5.46956,1828.3,1828.1,5.791]
[1743273242065,3.0,1828.2,1828.1,15.971]
[1743273242759,3.0,1828.2,1827.6,5.4714]
[1743273242760,0.846956,1828.2,1827.7,10.18]
[1743273242960,3.0,1827.9,1827.7,10.18]
[1743273243287,5.46987,1828.2,1827.8,15.65084]
[1743273243486,5.47038,1828.1,1827.8,10.18]
[1743273243784,9.63374731,1828.2,1827.8,10.18]
[1743273243785,9.63458731,1828.0,1827.8,10.18]
[1743273243956,8.47075,1827.9,1827.8,10.18]
[1743273244476,4.16388731,1828.0,1827.8,10.18]
[1743273244675,5.47026,1828.1,1827.8,11.198]
[1743273244854,13.94058,1828.1,1827.8,11.198]
[1743273245389,8.47026,1828.1,1827.8,11.198]
[1743273245685,13.94063,1828.1,1827.8,11.198]
[1743273245895,13.94063,1828.1,1827.8,10.18]
[1743273246081,3.0,1828.1,1827.9,10.18]
[1743273246389,3.0,1828.1,1827.9,15.65063]
[1743273246690,8.47033,1828.1,1827.9,10.18]
[1743273246871,8.47031,1828.1,1827.9,10.18]
[1743273247193,8.47031,1828.1,1827.9,10.23470194]
[1743273247564,3.0,1828.1,1827.9,18.63957513]
[1743273247794,5.46973,1828.3,1827.9,18.58485319]
[1743273248001,5.46973,1828.3,1828.0,15.65045]
[1743273248198,4.16388731,1828.4,1828.1,5.47005]
[1743273248402,3.0,1828.4,1828.1,10.99479834]
[1743273248573,3.0,1828.4,1828.1,7.58752983]
[1743273248781,3.0,1828.4,1828.1,7.64215438]
[1743273248983,8.46928,1828.4,1828.1,7.64213438]
[1743273249178,3.0,1828.4,1828.1,13.11214438]
[1743273249504,3.0,1828.4,1828.1,7.58743983]
[1743273249693,3.0,1828.4,1828.1,7.64213459]
[1743273249893,3.41578473,1828.5,1828.2,6.23396346]
[1743273250090,8.88475473,1828.5,1828.2,0.76421346]
[1743273250599,0.41578473,1828.5,1828.3,5.46934]
[1743273250907,0.0473467,1828.6,1828.4,10.18]
[1743273251108,0.0473467,1828.6,1828.4,15.64904]
[1743273251414,0.0473467,1828.6,1828.5,11.744904]
[1743273251600,0.0473467,1828.6,1828.5,10.18]
[1743273254419,0.0473467,1828.6,1828.5,16.43356]
[1743273257510,0.0473467,1828.6,1828.5,10.18]
[1743273258073,0.0473467,1828.6,1828.2,1.54881346]
[1743273258074,5.4693,1828.4,1828.2,10.18]
[1743273258304,4.16388731,1828.4,1828.2,10.18]
[1743273258810,4.57194288,1828.4,1827.9,16.43535]
[1743273259123,4.57194288,1828.4,1828.0,17.293985]
[1743273259124,5.46967,1828.3,1828.0,17.293985]
[1743273259316,5.46967,1828.3,1828.0,11.823535]
[1743273259613,10.04120288,1828.4,1828.0,11.823535]
[1743273259908,10.04120288,1828.4,1828.0,17.293905]
[1743273260114,5.46957,1828.3,1828.0,11.823535]
[1743273260802,5.47045,1828.0,1827.9,10.18]
[1743273260997,5.47045,1828.0,1827.8,10.18]
[1743273261203,5.47045,1828.0,1827.5,5.47194]
[1743273261204,3.0,1827.9,1827.5,5.47194]
[1743273261516,3.0,1827.9,1827.6,5.47151]
[1743273261716,8.47076,1827.9,1827.5,11.26084]
[1743273262027,8.47076,1827.9,1827.6,1.126084]
[1743273262731,8.47076,1827.9,1827.5,11.26078]
[1743273262930,8.47076,1827.9,1827.4,16.43376]
[1743273263235,8.47076,1827.9,1827.5,11.2608]
[1743273263811,8.47076,1827.9,1827.5,16.73254]
[1743273264035,8.47076,1827.9,1827.5,11.26074]
[1743273264402,3.0,1827.9,1827.6,6.597654]
[1743273264701,8.47076,1827.9,1827.6,6.597654]
[1743273265035,13.94181,1827.9,1827.5,11.26095]
[1743273265238,8.47076,1827.9,1827.5,11.26095]
[1743273265401,8.47076,1827.9,1827.5,16.73274]
[1743273265601,8.88580494,1827.9,1827.5,16.73274]
[1743273265798,15.734911,1827.5,1826.9,10.18]
[1743273265998,0.55,1827.8,1827.0,10.18]
[1743273265999,4.16388731,1827.1,1827.0,10.18]
[1743273266238,7.16388731,1827.3,1826.9,15.65351]
[1743273266414,12.63643731,1827.3,1826.9,15.65351]
[1743273267033,18.10923731,1827.3,1826.9,15.65351]
[1743273267235,9.63729731,1827.1,1826.9,10.18]
[1743273267533,3.0,1827.0,1826.8,10.18]
[1743273268301,8.47352,1827.0,1826.7,10.18]
[1743273268639,10.9479,1826.9,1826.7,10.18]
[1743273268813,9.63775731,1826.9,1826.7,10.18]
[1743273269205,15.11161731,1826.9,1826.7,10.18]
[1743273269431,9.63774731,1826.9,1826.7,10.18]
[1743273269634,5.47405,1826.8,1826.7,10.18]
[1743273269908,9.63774731,1826.9,1826.7,10.18]
[1743273270720,15.11174731,1826.9,1826.7,10.18]
[1743273271034,10.5263278,1826.9,1826.7,10.18]
[1743273271229,15.11172731,1826.9,1826.7,10.18]
[1743273271555,15.11163731,1826.9,1826.7,10.18]
[1743273271721,8.47405,1826.8,1826.7,10.18]
[1743273271920,8.88400342,1826.8,1826.7,10.18]
[1743273272549,3.40995342,1826.8,1826.7,10.18]
[1743273273456,3.40995342,1826.8,1826.5,5.47493]
[1743273273637,3.40995342,1826.8,1826.6,5.47457]
[1743273274261,3.40995342,1826.8,1826.5,5.47493]
[1743273274459,3.40995342,1826.8,1826.5,11.00441283]
[1743273274632,3.40995342,1826.8,1826.5,10.94948]
[1743273275157,3.40995342,1826.8,1826.5,5.47495]
[1743273275365,3.0,1826.8,1826.6,5.47448]
[1743273275571,4.16388731,1827.3,1827.0,5.47325]
[1743273275773,4.16388731,1827.4,1827.1,10.18]
[1743273275941,4.16388731,1827.4,1827.1,10.23472661]
[1743273276141,4.16388731,1827.4,1827.1,15.70770661]
[1743273276362,4.16388731,1827.6,1827.2,5.47257]
[1743273276668,4.16388731,1827.6,1827.3,5.47235]
[1743273278055,4.56622953,1827.6,1827.3,5.47235]
[1743273278251,5.47198,1827.5,1827.1,7.67103366]
[1743273278458,4.16388731,1827.4,1827.1,15.971]
[1743273278774,4.16388731,1827.4,1827.1,21.44413]
[1743273278962,4.16388731,1827.4,1827.1,23.09841057]
[1743273279370,4.16388731,1827.4,1827.1,28.57134057]
[1743273279774,4.16388731,1827.4,1827.1,23.09821057]
[1743273281049,9.63614731,1827.4,1827.1,15.971]
[1743273281441,4.16388731,1827.2,1826.9,5.791]
[1743273281645,5.47387,1826.9,1826.7,15.971]
[1743273281852,3.0,1826.9,1826.7,11.26524]
[1743273282082,3.0,1826.9,1826.7,13.957202]
[1743273282379,3.0,1826.9,1826.7,19.431322]
[1743273282552,3.0,1826.9,1826.7,13.957082]
[1743273283282,3.0,1826.9,1826.7,11.26512]
[1743273285822,3.0,1826.9,1826.7,5.791]
[1743273286130,5.4741,1826.8,1826.6,10.18]
[1743273286279,8.47448,1826.7,1826.5,10.18]
[1743273286483,8.47448,1826.7,1826.4,10.18]
[1743273286484,9.63866731,1826.6,1826.4,10.18]
[1743273286782,5.47495,1826.5,1826.4,10.18]
[1743273287005,5.47495,1826.5,1826.3,10.18]
[1743273287182,9.63866731,1826.6,1826.3,10.18]
[1743273287378,5.47496,1826.5,1826.3,10.18]
[1743273287618,4.16388731,1826.6,1826.3,10.18]
[1743273287619,9.63860731,1826.6,1826.3,10.18]
[1743273287817,5.47502,1826.5,1826.3,10.18]
[1743273288318,10.71038419,1826.6,1826.3,10.18]
[1743273288488,16.18527419,1826.6,1826.3,10.18]
[1743273288681,8.47509,1826.5,1826.2,10.18]
[1743273288886,4.16388731,1826.4,1826.2,10.18]
[1743273289606,9.63929731,1826.4,1826.2,10.18]
[1743273290623,10.05463973,1826.4,1826.2,10.18]
[1743273290795,15.53008973,1826.4,1826.2,10.18]
[1743273291123,11.31847646,1826.4,1826.2,10.18]
[1743273291329,4.57922973,1826.4,1826.1,15.70613]
[1743273291501,10.05447973,1826.4,1826.1,15.70613]
[1743273292631,4.57922973,1826.4,1826.1,15.70613]
[1743273292998,10.05455973,1826.4,1826.1,15.70613]
[1743273293699,10.05455973,1826.4,1826.1,10.23]
[1743273294215,10.05455973,1826.4,1826.1,15.70613]
[1743273295497,4.57922973,1826.4,1826.1,12.01552283]
[1743273295697,0.41534242,1826.4,1826.2,5.47574]
[1743273296025,5.47498,1826.5,1826.2,5.47574]
[1743273296393,5.47498,1826.5,1826.1,7.31152283]
[1743273298098,5.47498,1826.5,1826.1,12.78749283]
[1743273298634,12.63879731,1826.6,1826.2,5.47569]
[1743273298999,3.0,1826.4,1826.1,7.31164283]
[1743273299210,3.40736073,1826.4,1826.1,7.36639861]
[1743273300334,5.4757,1826.3,1826.1,10.23]
[1743273301029,11.99448834,1826.2,1826.1,10.23]
[1743273301217,11.99448834,1826.2,1826.1,0.05]
[1743273301528,17.56359034,1826.2,1826.1,0.05]
[1743273301729,17.13632534,1826.2,1826.1,0.05]
[1743273301948,6.51863834,1826.2,1826.1,0.05]
[1743273302151,3.51863834,1826.3,1826.1,0.05]
[1743273302302,6.51863834,1826.3,1826.1,5.52603]
[1743273302643,6.51863834,1826.3,1826.1,0.05]
[1743273302840,6.51863834,1826.3,1826.1,5.52611]
[1743273303005,3.0,1826.3,1826.1,5.52611]
[1743273303746,4.15693519,1826.4,1826.1,5.52611]
[1743273303952,4.15693519,1826.6,1826.4,5.47501]
[1743273304190,4.15693519,1826.8,1826.5,5.47495]
[1743273304505,5.47446,1826.7,1826.3,5.47553]
[1743273305341,9.63173519,1826.6,1826.2,10.18]
[1743273305556,10.59490871,1826.6,1826.2,10.18]
[1743273305711,5.47567,1826.3,1826.1,10.23]
[1743273306129,4.15693519,1826.4,1826.1,10.23]
[1743273306541,5.47566,1826.3,1826.1,10.23]
[1743273306840,9.84518425,1826.6,1826.3,5.47543]
[1743273306841,5.52746944,1826.6,1826.3,5.47543]
[1743273307048,3.0,1826.5,1826.3,5.47543]
[1743273307406,0.40736073,1826.6,1826.4,5.47525]
[1743273307633,3.0,1826.7,1826.4,5.47525]
[1743273308031,8.47461,1826.7,1826.2,11.26575]
[1743273308231,8.47461,1826.7,1826.2,5.79]
[1743273308232,5.47514,1826.5,1826.2,5.79]
[1743273308438,6.43834752,1826.5,1826.2,5.79]
[1743273308740,5.47514,1826.5,1826.2,5.79]
[1743273309207,10.95029,1826.5,1826.2,5.79]
[1743273309407,5.47514,1826.5,1826.2,5.79]
[1743273310345,5.47529,1826.4,1826.2,5.79]
[1743273310717,5.47514,1826.5,1826.2,5.79]
[1743273311107,5.47514,1826.5,1826.2,11.26581]
[1743273311848,3.0,1826.5,1826.2,11.26581]
[1743273312009,3.0,1826.5,1826.3,5.47552]
[1743273312323,3.0,1826.5,1826.4,5.47525]
[1743273312532,13.04345245,1826.7,1826.3,5.47541]
[1743273313119,4.15693519,1826.9,1826.6,5.47465]
[1743273313318,4.15693519,1826.9,1826.6,5.47454]
[1743273313620,7.15693519,1826.9,1826.6,5.47454]
[1743273314142,3.0,1826.9,1826.7,5.47432]
[1743273314620,3.40461522,1826.9,1826.7,5.47432]
[1743273315708,10.94839,1826.8,1826.5,5.789]
[1743273316121,5.47415,1826.8,1826.5,5.789]
[1743273316316,13.03533041,1826.9,1826.5,11.26395]
[1743273316546,7.56155041,1826.9,1826.6,5.47443]
[1743273316705,13.03534041,1826.9,1826.6,5.47443]
[1743273317443,18.50934041,1826.9,1826.5,17.881175]
[1743273317646,18.50934041,1826.9,1826.5,15.65494]
[1743273318016,13.03534041,1826.9,1826.5,15.65494]
[1743273318215,7.56155041,1826.9,1826.6,5.47455]
[1743273318542,7.56155041,1826.9,1826.5,15.65494]
[1743273318543,13.03545041,1826.9,1826.5,15.65491]
[1743273318846,18.50943041,1826.9,1826.5,15.65491]
[1743273319022,13.03545041,1826.9,1826.5,21.12965]
[1743273319219,18.50939041,1826.9,1826.5,18.428345]
[1743273319424,13.03545041,1826.9,1826.5,15.65474]
[1743273319628,18.50940041,1826.9,1826.5,15.65474]
[1743273319944,8.47407,1826.8,1826.5,15.65474]
[1743273320148,3.0,1826.8,1826.5,21.1295]
[1743273320471,3.0,1826.8,1826.7,5.47419]
[1743273321051,3.0,1826.8,1826.5,15.65492]
[1743273321215,3.0,1826.8,1826.5,23.355872]
[1743273321416,3.0,1826.8,1826.6,5.47451]
[1743273321925,3.0,1826.8,1826.6,5.47449]
[1743273322341,3.0,1826.8,1826.7,5.47435]
[1743273322524,0.40461522,1826.9,1826.7,5.47435]
[1743273322724,3.0,1827.0,1826.7,5.47435]
[1743273322926,1.22355413,1827.3,1826.8,0.7528]
[1743273322927,5.38048932,1827.3,1826.8,0.7528]
[1743273323132,1.22355413,1827.3,1827.1,5.47298]
[1743273323331,1.22355413,1827.3,1827.2,5.47285]
[1743273323838,1.22355413,1827.3,1827.2,16.40565]
[1743273324016,15.10012519,1827.7,1827.3,5.47251]
[1743273324217,3.0,1827.6,1827.3,15.65251]
[1743273324540,8.47166,1827.6,1827.3,15.65251]
[1743273324719,12.62858519,1827.6,1827.3,10.18]
[1743273325049,3.51413106,1827.4,1827.3,10.18]
[1743273325248,8.98638106,1827.4,1827.3,10.18]
[1743273325439,12.30275417,1827.4,1827.3,10.18]
[1743273326129,4.41273917,1827.4,1827.3,10.18]
[1743273326453,8.98638106,1827.4,1827.3,10.18]
[1743273326769,3.51413106,1827.4,1827.3,10.18]
[1743273328336,3.51413106,1827.4,1827.2,16.40547]
[1743273329328,3.44161796,1827.4,1827.2,16.40547]
[1743273329555,3.44161796,1827.4,1827.2,21.87813]
[1743273329828,3.44161796,1827.4,1827.3,5.47255]
[1743273330026,3.44161796,1827.4,1827.2,24.066013]
[1743273330227,3.44161796,1827.4,1827.2,18.593273]
[1743273330863,3.0,1827.3,1827.2,10.18]
[1743273331070,8.47255,1827.3,1827.2,10.18]
[1743273331570,15.60682619,1827.3,1827.2,10.18]
[1743273331873,9.03967019,1827.3,1827.2,10.18]
[1743273332069,11.30345619,1827.3,1827.2,10.18]
[1743273332258,9.03967019,1827.3,1827.2,10.18]
[1743273332461,13.15543319,1827.3,1827.2,10.18]
[1743273332969,3.56712019,1827.3,1827.2,10.18]
[1743273333435,3.56712019,1827.3,1827.2,17.218153]
[1743273334178,0.56712019,1827.3,1827.2,17.970953]
[1743273334375,0.56712019,1827.3,1827.2,23.754953]
[1743273334585,3.51413106,1827.5,1827.4,5.47225]
[1743273335082,3.51413106,1827.5,1827.3,5.47247]
[1743273335245,3.51413106,1827.5,1827.4,6.019497]
[1743273335441,3.0,1827.6,1827.5,6.29235]
[1743273336484,3.51413106,1827.8,1827.6,5.47165]
[1743273336658,3.51413106,1827.8,1827.6,15.65165]
[1743273336859,3.42145882,1827.9,1827.6,15.65165]
[1743273336860,7.57159823,1827.9,1827.6,15.65165]
[1743273337180,7.57159823,1827.9,1827.6,17.84605]
[1743273337476,7.57159823,1827.9,1827.6,12.3744]
[1743273337683,13.04248823,1827.9,1827.6,12.3744]
[1743273338052,7.15013941,1827.9,1827.6,12.3744]
[1743273338352,7.15013941,1827.9,1827.6,17.84595]
[1743273339057,7.15013941,1827.9,1827.6,17.84585]
[1743273339972,7.15013941,1827.9,1827.7,10.18]
[1743273340494,18.09192941,1827.9,1827.7,10.18]
[1743273340660,8.47105,1827.8,1827.7,10.18]
[1743273342308,3.0,1827.8,1827.7,10.18]
[1743273343672,7.991,1827.8,1827.7,10.18]
[1743273343879,10.572729,1827.8,1827.7,10.18]
[1743273345193,8.47105,1827.8,1827.7,10.18]
[1743273345583,11.19389,1827.8,1827.7,10.18]
[1743273345787,16.66519,1827.8,1827.4,15.65202]
[1743273346013,4.15013941,1827.7,1827.4,17.795422]
[1743273346512,3.0,1827.8,1827.5,0.8206]
[1743273346701,3.0,1827.8,1827.6,5.47148]
[1743273347413,3.0,1827.8,1827.7,5.47135]
[1743273347620,9.61972941,1828.3,1827.8,6.29148]
[1743273347916,9.61972941,1828.3,1827.8,16.47148]
[1743273348115,3.0,1828.2,1827.9,15.65051]
[1743273348298,3.0,1828.2,1828.0,5.47043]
[1743273348973,3.0,1828.2,1827.9,15.65051]
[1743273349181,8.4699,1828.2,1828.0,1.565051]
[1743273349396,8.4699,1828.2,1827.9,10.18]
[1743273349699,0.5256187,1828.1,1827.9,10.18]
[1743273350309,0.5256187,1828.1,1828.0,5.47045]
[1743273350911,4.15013941,1828.3,1828.0,5.47045]
[1743273351111,0.5256187,1828.2,1828.0,5.47045]
[1743273351409,0.5256187,1828.2,1828.0,2.112116]
[1743273351797,0.5256187,1828.2,1828.0,12.292116]
[1743273352011,0.5256187,1828.2,1828.0,17.762436]
[1743273352406,0.5256187,1828.2,1828.0,17.762336]
[1743273352616,0.5256187,1828.2,1828.1,6.25366]
[1743273352812,0.5256187,1828.2,1828.1,3.1850996]
[1743273353099,0.5256187,1828.2,1828.0,10.18]
[1743273353518,0.5256187,1828.2,1828.1,5.47016]
[1743273354510,0.5256187,1828.2,1828.1,6.25366]
[1743273354711,3.0,1828.5,1828.2,5.46984]
[1743273354937,8.46898,1828.5,1828.2,10.18]
[1743273355235,8.46898,1828.5,1828.2,11.823366]
[1743273355934,8.88737649,1828.5,1828.2,11.823366]
[1743273357643,3.0,1828.3,1828.2,10.18]
[1743273357933,8.46956,1828.3,1828.2,10.18]
[1743273359005,6.90185909,1828.3,1827.8,10.9635]
[1743273359317,3.0,1827.8,1827.6,5.47165]
[1743273359643,3.0,1827.8,1827.6,6.25515]
[1743273359800,3.0,1827.8,1827.7,0.625515]
[1743273360405,3.0,1827.8,1827.6,0.7835]
[1743273360671,3.90185909,1827.7,1827.6,0.7835]
[1743273360877,3.90185909,1827.7,1827.4,22.21275]
[1743273361080,3.90185909,1827.7,1827.4,27.68485]
[1743273361241,3.90185909,1827.7,1827.5,5.47185]
[1743273361445,3.90185909,1827.7,1827.6,0.547185]
[1743273361653,3.90185909,1827.7,1827.5,5.47192]
[1743273362270,3.90185909,1827.7,1827.4,27.6847]
[1743273362467,9.37324909,1827.7,1827.4,5.47207]
[1743273362645,3.90185909,1827.5,1827.3,11.24942]
[1743273363031,3.90185909,1827.5,1827.3,10.18]
[1743273363236,3.90185909,1827.5,1827.3,11.745274]
[1743273363436,0.52830791,1827.4,1827.3,11.745274]
[1743273363632,0.52830791,1827.4,1827.3,18.001324]
[1743273363940,3.90185909,1827.5,1827.4,5.47225]
[1743273364163,4.430167,1827.5,1827.3,18.001264]
[1743273364479,4.430167,1827.5,1827.4,1.8001264]
[1743273364842,9.902117,1827.5,1827.4,1.8001264]
[1743273365441,4.430167,1827.5,1827.4,1.8001264]
[1743273368350,4.430167,1827.5,1827.4,7.2723764]
[1743273368754,4.430167,1827.5,1827.4,1.8001264]
[1743273369237,4.430167,1827.5,1827.4,11.9801264]
[1743273369882,5.47266,1827.3,1827.1,10.18]
[1743273370040,0.52287914,1827.2,1827.1,10.18]
[1743273370446,0.52287914,1827.2,1827.1,15.70787721]
[1743273370758,3.0,1827.4,1827.2,5.47257]
[1743273370950,3.0,1827.4,1827.3,6.25285]
[1743273371151,3.0,1827.6,1827.3,18.673799]
[1743273371477,3.0,1827.6,1827.4,5.47204]
[1743273372039,3.0,1827.6,1827.3,7.425409]
[1743273372245,3.90185909,1827.5,1827.3,13.200409]
[1743273373077,1.90185909,1827.5,1827.3,13.200299]
[1743273373297,1.90185909,1827.5,1827.4,1.3200299]
[1743273374273,1.90185909,1827.5,1827.4,6.7922799]
[1743273375096,3.0,1827.6,1827.4,6.7922799]
[1743273375406,11.00074877,1829.2,1827.6,5.47165]
[1743273375407,5.47065,1828.0,1827.6,5.47165]
[1743273375696,5.47065,1828.0,1827.8,5.471]
[1743273375697,3.0,1827.9,1827.8,5.471]
[1743273375904,3.0,1827.9,1827.8,6.10160108]
[1743273376110,3.90185909,1828.0,1827.9,5.47075]
[1743273376279,3.90185909,1828.2,1827.9,5.47075]
[1743273376599,3.0,1828.1,1827.9,5.47075]
[1743273377305,3.90185909,1828.2,1827.9,5.47075]
[1743273377306,3.90185909,1828.2,1828.0,10.18]
[1743273377603,3.90185909,1828.2,1828.1,1.018]
[1743273377773,3.90185909,1828.3,1828.1,7.26834]
[1743273377979,3.0,1828.2,1828.1,7.26834]
[1743273378205,3.90185909,1828.5,1828.3,5.46955]
[1743273378371,3.90185909,1828.5,1828.3,6.563491]
[1743273378877,3.90185909,1828.5,1828.4,15.64926]
[1743273379209,0.0473467,1828.6,1828.4,16.42956]
[1743273379379,0.0473467,1828.6,1828.4,16.42943]
[1743273379701,0.0473467,1828.6,1828.5,1.642943]
[1743273379882,3.94920579,1828.6,1828.4,16.7343]